Cogmind - Beta 9 @@@ ROGUE MODE // 2019.11.19 @ 07:12:11 Player: UlyssesB Result: Destroyed by G-67 Veteran with Plasma Rifle Performance ------------- Evolutions (7) 3500 Regions Visited (19) 3800 Robots Destroyed (79) 395 Value Destroyed (3023) 3023 Prototype IDs (44) 880 Alien Tech Used (1) 200 Bonus (3276) 3276 TOTAL SCORE: 15074 Bonus ------- Triggered Max Security 1000 High Alert Combat Kills 39 Follower Combat Kills 37 Aligned with FarCom 300 Met Data Miner 300 Met Warlord at Base 500 MAIN.C Attacked Warlord 500 Warlord Defense Kill 100 Scanned by Researcher 500 Cogmind --------- Core Integrity 0/1300 Matter 275/300 Energy 99/100 System Corruption 5% Temperature Cool (310) Location -3/Testing Parts ------- Power (2) Propulsion (5) Utility (10) Experimental Targeting Computer Advanced Melee Analysis Suite System Mapper Weapon (5) Inventory (4) Myomer Leg Enhanced Biometal Leg Cooled Plasma Rifle Gamma Bomb Array Peak State ------------ Power Light Particle Reactor Light Particle Reactor Propulsion Antigrav System Improved Antigrav System Improved Gyrokinetic Inverter Utility Advanced Weight Redist. System Advanced Terrain Scan Processor Advanced Melee Analysis Suite Advanced Melee Analysis Suite Improved Energy Mantle Hacking Suite System Mapper System Shield Weapon Bore Cannon Heavy Mace Inventory Myomer Leg Enhanced Biometal Leg Antigrav System Antigrav System [Rating: 87] Favorites ----------- Power Enhanced Nuclear Core Engine Ion Engine Power Core Enhanced Nuclear Core Reactor Light Particle Reactor Propulsion Light Treads Treads Light Treads Leg Aluminum Leg Wheel Wheel Hover Unit Gyrokinetic Inverter Flight Unit Field Propulsion Drive Utility Large Storage Unit Device Advanced Terrain Scanner Storage Large Storage Unit Processor Advanced Terrain Scan Processor Hackware Hacking Suite Protection Light Armor Plating Weapon Beam Cannon Energy Gun Wave Gun Energy Cannon Beam Cannon Ballistic Gun Shotgun Ballistic Cannon AWS/Autocannon Launcher Grenade Launcher Special Weapon Mining Laser Impact Weapon Heavy Mace Slashing Weapon Makeshift Sword Build | -11 -10 -10 -10 -9 -8 -7 -6 -6 -6 -6 -5 -5 -5 -5 -5 -4 -4 -3 -3 ------- Run | Scr Mat Min Exi Min Mat Fac Fac Low Low Dat Pro Fac Upp Upp War Pro Fac Res Tes Slots Evolved 14 | . . . . . 4 2 2 . . . . 2 . . . . 2 2 . Power 1 | . . . . . . . . . . . . . . . . . 1 . . Propulsion 3 | . . . . . 1 . 1 . . . . 1 . . . . . . . Utility 8 | . . . . . 2 2 . . . . . 1 . . . . 1 2 . Weapon 2 | . . . . . 1 . 1 . . . . . . . . . . . . Parts Attached 136 | . 8 11 4 1 30 7 2 11 2 . 8 7 . . 14 2 20 5 4 Power 16 | . 1 1 1 . 4 1 . 2 . . 1 1 . . . . 3 1 . Engine 7 | . . 1 1 . 2 . . 1 . . 1 . . . . . . 1 . Core 6 | . 1 . . . 2 1 . 1 . . . 1 . . . . . . . Reactor 3 | . . . . . . . . . . . . . . . . . 3 . . Propulsion 37 | . 2 3 1 . 12 . 1 1 . . 4 1 . . 3 . 7 1 1 Treads 9 | . . . . . 5 . 1 1 . . 2 . . . . . . . . Leg 12 | . . 3 1 . 7 . . . . . . . . . 1 . . . . Wheel 4 | . 2 . . . . . . . . . 2 . . . . . . . . Hover 10 | . . . . . . . . . . . . 1 . . 2 . 6 1 . Flight 2 | . . . . . . . . . . . . . . . . . 1 . 1 Utility 40 | . 1 2 2 . 4 3 1 4 1 . 2 5 . . 5 2 6 . 2 Device 16 | . . . . . 2 1 . 3 1 . 1 1 . . 3 . 4 . . Storage 6 | . 1 1 2 . . 1 . . . . . . . . . . . . 1 Processor 7 | . . 1 . . . 1 . . . . . . . . 1 1 2 . 1 Hackware 6 | . . . . . . . . . . . . 4 . . 1 1 . . . Protection 5 | . . . . . 2 . 1 1 . . 1 . . . . . . . . Artifact . | . . . . . . . . . . . . . . . . . . . . Weapon 43 | . 4 5 . 1 10 3 . 4 1 . 1 . . . 6 . 4 3 1 Energy Gun 12 | . 3 2 . . 5 . . 1 1 . . . . . . . . . . Energy Cannon 3 | . . 2 . . . . . . . . . . . . . . . 1 . Ballistic Gun 6 | . 1 1 . 1 2 . . . . . . . . . 1 . . . . Ballistic Cannon 4 | . . . . . . 1 . . . . . . . . . . 3 . . Launcher 6 | . . . . . 3 . . 1 . . . . . . 2 . . . . Special Weapon 2 | . . . . . . 1 . . . . . . . . . . . 1 . Impact Weapon 1 | . . . . . . . . . . . . . . . . . 1 . . Slashing Weapon 9 | . . . . . . 1 . 2 . . 1 . . . 3 . . 1 1 Piercing Weapon . | . . . . . . . . . . . . . . . . . . . . Special Melee Weapon . | . . . . . . . . . . . . . . . . . . . . Unidentified Prototypes 12 | . . . . . 1 1 . 1 . . . . . . 6 . . 1 2 Parts Lost 65 | . 2 4 . 3 11 . . 1 . . 9 1 . . 12 . 17 . 5 Power 9 | . . 1 . 1 3 . . . . . 1 . . . . . 2 . 1 Propulsion 19 | . . 2 . . 2 . . . . . 5 . . . 2 . 6 . 2 Utility 13 | . . . . . 1 . . . . . 1 . . . 4 . 7 . . Weapon 24 | . 2 1 . 2 5 . . 1 . . 2 1 . . 6 . 2 . 2 Highest Loss Streak 13 | . 2 6 . 3 3 . . 1 . . 8 1 . . 12 . 13 . 3 Average Slot Usage (%) 71 | . 95 92 100 96 76 83 79 83 85 81 51 32 44 44 64 30 58 18 36 Engine 3 | . 8 12 14 12 2 4 . . . . . . . . . . . . 3 Core 3 | . 4 . . . 4 2 6 5 6 6 3 2 5 5 5 5 3 . . Treads 8 | . . . . . 6 23 25 25 25 25 13 . . . . . . . . Leg 7 | . 3 25 28 28 20 . . . . . . . . . . . . . . Wheel 1 | . 24 1 . . . . . . . . . . . . . . . . . Hover 1 | . . . . . . . . . . . . 2 5 5 11 5 8 6 6 Device 5 | . . . . . 2 14 13 11 7 12 7 2 5 5 3 . 6 . . Storage 12 | . 24 23 28 28 18 15 13 12 12 12 7 . . . . . . . 2 Processor 4 | . . 4 . . . 6 6 6 6 6 6 5 5 5 5 7 13 4 7 Hackware 4 | . . . . . . . . . . . . 13 22 22 24 12 14 4 4 Protection 2 | . . . . . 3 7 6 6 8 . . . . . . . . . . Energy Gun 3 | . 18 4 . . 13 2 . . 5 6 3 . . . . . . . . Energy Cannon 4 | . . 14 28 24 . . . . . . . . . . . . . . 3 Ballistic Gun 1 | . 8 4 . 1 5 . . . . . . . . . . . . . . Ballistic Cannon 2 | . . . . . . 4 6 6 6 6 3 . . . . . 2 . . Launcher 1 | . . . . . 2 . . . 6 6 3 . . . 3 . . . . Slashing Weapon 1 | . . . . . . . . 6 . . 2 4 . . 8 . . . 3 Naked Turns . | . . . . . . . . . . . . . . . . . . . . Heaviest Build 122 | 12 16 19 45 45 53 105 109 122 120 111 111 8 6 6 29 5 55 10 21 Greatest Support 88 | 20 26 26 25 25 60 60 80 88 88 88 88 16 16 16 56 16 59 47 27 Greatest Overweight (x) 4 | . . 1 1 1 2 1 1 1 1 1 4 . . . 1 . 2 . . Average Overweight (x) . | . . . . 1 . . 1 1 1 1 . . . . . . . . . Largest Inventory Capacity 16 | 6 8 8 16 16 16 16 16 16 16 16 16 4 4 4 4 4 4 4 8 Average Capacity 10 | 6 7 7 8 16 16 16 16 16 16 16 11 4 4 4 4 4 4 4 6 Most Carried 16 | 6 7 8 9 13 16 15 16 16 16 16 16 4 4 4 4 4 4 4 7 Average Carried 9 | 6 6 6 8 11 14 13 15 15 15 16 10 3 3 4 3 4 3 3 5 Final Capacity 4 | . . . . . . . . . . . . . . . . . . . 4 Final Carried 4 | . . . . . . . . . . . . . . . . . . . 4 Class Distribution -------------------- 32% | Mutant 26% | Scavenger-Skirmisher 20% | Hacker-Mutant 6% | Hacker-Scout 5% | Scavenger-Mutant 5% | Scavenger-Tank Dominant Class ---------------- Mutant | -10/Materials Mutant | -10/Mines Mutant | -10/Exiles Mutant | -9/Mines Mutant | -8/Materials Scavenger-Skirmisher | -7/Factory Scavenger-Skirmisher | -6/Factory Scavenger-Skirmisher | -6/Lower Caves Scavenger-Tank | -6/Lower Caves Scavenger-Skirmisher | -6/Data Miner Scavenger-Skirmisher | -5/Proximity Caves Hacker-Scout | -5/Factory Hacker-Mutant | -5/Upper Caves Hacker-Mutant | -5/Upper Caves Wizard-Mutant | -5/Warlord Hacker-Mutant | -4/Proximity Caves Hacker-Mutant | -4/Factory Hacker-Mutant | -3/Research Hacker-Mutant | -3/Testing Resources | -11 -10 -10 -10 -9 -8 -7 -6 -6 -6 -6 -5 -5 -5 -5 -5 -4 -4 -3 -3 ----------- Run | Scr Mat Min Exi Min Mat Fac Fac Low Low Dat Pro Fac Upp Upp War Pro Fac Res Tes Matter Collected 1780 | 200 50 128 . 82 472 80 . 162 30 . 70 . 52 13 83 12 313 33 . Remotely . | . . . . . . . . . . . . . . . . . . . . Salvage Created 2754 | . 80 197 . 143 682 186 . 371 281 . 329 . . . 31 . 442 . 12 Parts 120 | . 5 9 . 3 37 10 . 14 14 . 9 . . . 1 . 16 . 2 Haulers Intercepted 2 | . . . . . . . . . . . . . . . . . 2 . . Recyclers Shooed 3 | . 1 2 . . . . . . . . . . . . . . . . . Parts Field Recycled . | . . . . . . . . . . . . . . . . . . . . Retrieved Matter . | . . . . . . . . . . . . . . . . . . . . Parts Self-Destructed 46 | . . . . . . . . 13 17 . 12 . . . 4 . . . . Prevented 6 | . . . . . . . . . . . . . . 2 4 . . . . Kills | -11 -10 -10 -10 -9 -8 -7 -6 -6 -6 -6 -5 -5 -5 -5 -5 -4 -4 -3 -3 ------- Run | Scr Mat Min Exi Min Mat Fac Fac Low Low Dat Pro Fac Upp Upp War Pro Fac Res Tes Combat Hostiles Destroyed 70 | . 2 5 . 3 21 5 . 10 8 . 8 . . . 1 . 6 . 1 Melee 4 | . . . . . . . . 1 . . . . . . 1 . 1 . 1 Guns 23 | . 2 3 . 3 15 . . . . . . . . . . . . . . Cannons 35 | . . 2 . . . 5 . 7 8 . 8 . . . . . 5 . . AOE 7 | . . . . . 5 . . 2 . . . . . . . . . . . Classes Destroyed 15 | . 1 1 . 1 2 2 . 2 1 . 1 . . . . . 3 . 1 Worker 2 | . . . . . . . . . . . . . . . . . 2 . . Hauler 2 | . . . . . . . . . . . . . . . . . 2 . . Recycler 1 | . . . . . . 1 . . . . . . . . . . . . . Carrier 1 | . . . . . . . . . . . 1 . . . . . . . . Operator 2 | . . . . . 1 1 . . . . . . . . . . . . . Watcher 1 | . . . . . . 1 . . . . . . . . . . . . . Swarmer 21 | . . 1 . . 7 4 . . 2 . 5 . . . . . 2 . . Saboteur 1 | . . . . . . . . . . . . . . . . . . . 1 Grunt 27 | . 2 4 . 2 10 . . 4 2 . 2 . . . 1 . . . . Brawler 1 | . . . . . . . . 1 . . . . . . . . . . . Duelist 6 | . . . . 1 1 . . 3 1 . . . . . . . . . . Sentry 7 | . . . . . 3 1 . 1 1 . 1 . . . . . . . . Hunter 2 | . . . . . . . . . 2 . . . . . . . . . . Programmer 4 | . . . . . . . . . . . . . . . . . 4 . . Mutant 1 | . . . . . . . . 1 . . . . . . . . . . . Best Kill Streak 8 | . 2 2 . 3 5 6 . 8 3 . 6 . . . 1 . 2 . 1 Combat Bots Only 8 | . 2 2 . 3 5 4 . 8 3 . 6 . . . 1 . 2 . 1 Max Kills in Single Turn 2 | . 1 1 . 1 2 1 . 2 1 . 1 . . . 1 . 1 . 1 Gunslinging . | . . . . . . . . . . . . . . . . . . . . Exploded 2 | . . . . . 2 . . 1 . . . . . . . . . . . Melee 1 | . . . . . . . . 1 . . . . . . 1 . 1 . 1 Uniques/NPCs Destroyed . | . . . . . . . . . . . . . . . . . . . . Combat | -11 -10 -10 -10 -9 -8 -7 -6 -6 -6 -6 -5 -5 -5 -5 -5 -4 -4 -3 -3 -------- Run | Scr Mat Min Exi Min Mat Fac Fac Low Low Dat Pro Fac Upp Upp War Pro Fac Res Tes Damage Taken 9992 | . 210 311 . 286 1341 41 . 374 116 . 1735 26 . 94 1533 67 2090 376 1392 Core 4020 | . 60 97 . . 150 . . 25 12 . 617 . . 58 499 67 1125 304 1006 Absorbed by Shields 830 | . . . . . 36 . . . . . . . . . . . 254 . 540 Core Remaining (%) 53 | 100 . . . 37 72 100 . . . . 23 . . . . 37 2 . . Volleys Fired 139 | . 9 22 . 12 67 . . 4 2 . . . . . 2 . 20 1 . Largest 3 | . 2 2 . 2 3 . . 1 1 . . . . . 2 . 1 1 . Hottest 154 | . 90 120 . 120 154 . . 56 81 . . . . . 78 . 57 94 . Shots Fired 315 | . 15 34 . 16 127 19 . 25 21 . 34 . . . 3 . 20 1 . Gun 167 | . 15 25 . 8 117 . . 1 1 . . . . . . . . . . Cannon 131 | . . 9 . 8 . 19 . 21 19 . 34 . . . . . 20 1 . Launcher 17 | . . . . . 10 . . 3 1 . . . . . 3 . . . . Special . | . . . . . . . . . . . . . . . . . . . . Kinetic 172 | . 3 15 . 8 33 19 . 21 19 . 34 . . . . . 20 . . Thermal 116 | . 12 19 . 8 75 . . 1 1 . . . . . . . . . . Explosive 14 | . . . . . 10 . . 3 1 . . . . . . . . . . Electromagnetic 13 | . . . . . 9 . . . . . . . . . 3 . . 1 . Robot Hit Streak 17 | . 10 11 . 12 7 7 . 17 12 . 8 . . . 2 . 4 1 . Robot Miss Streak 5 | . 1 2 . 3 5 1 . 1 1 . 2 . . . 1 . 4 . . Penetration Max . | . . . . . . . . . . . . . . . . . . . . Secondary Targets 1 | . . . . . 1 . . . . . . . . . . . . . . Max Gunslinging Chain 1 | . . . . . 1 . . . . . . . . . . . . . . Autonomous 93 | . . . . . . 19 . 21 19 . 34 . . . . . . . . Shots Hit Robots 258 | . 13 26 . 13 81 15 . 23 19 . 30 . . . 8 . 26 1 3 Core Hits 124 | . 6 12 . 7 43 8 . 15 7 . 11 . . . 4 . 10 . 1 Critical Hits 20 | . . . . . . . . 3 . . 2 . . . 1 . 14 . . Critical Kills 8 | . . . . . . . . 1 . . . . . . . . 7 . . Critical Parts Destroyed 11 | . . . . . . . . 1 . . 2 . . . 1 . 7 . . Melee Attacks 74 | . . . . . . 1 . 6 . . 12 21 . . 9 . 20 . 5 Impact 20 | . . . . . . . . . . . . . . . . . 20 . . Slashing 54 | . . . . . . 1 . 6 . . 12 21 . . 9 . . . 5 Piercing . | . . . . . . . . . . . . . . . . . . . . Sneak Attacks 4 | . . . . . . . . 1 . . 1 . . . . . 2 . . Combat Hostiles . | . . . . . . . . . . . . . . . . . . . . Follow-up Attacks 4 | . . . . . . . . . . . . . . . 4 . . . . Damage Inflicted 10031 | . 126 299 . 190 1988 1035 15 1840 1107 . 2034 . . . 221 . 985 37 154 Guns 1741 | . 126 176 . 83 1317 . . 15 24 . . . . . . . . . . Cannons 6007 | . . 123 . 107 . 1002 . 1477 1020 . 1882 . . . . . 360 36 . Explosions 1008 | . . . . . 665 . . 269 63 . . . . . 11 . . . . Melee 1220 | . . . . . . . . 79 . . 152 . . . 210 . 625 . 154 Ramming 55 | . . . . . 6 33 15 . . . . . . . . . . 1 . Kinetic 6222 | . 22 95 . 83 281 1002 . 1477 1020 . 1882 . . . . . 360 . . Thermal 1363 | . 104 204 . 107 909 . . 15 24 . . . . . . . . . . Explosive 997 | . . . . . 665 . . 269 63 . . . . . . . . . . Electromagnetic 174 | . . . . . 127 . . . . . . . . . 11 . . 36 . Impact 625 | . . . . . . . . . . . . . . . . . 625 . . Slashing 595 | . . . . . . . . 79 . . 152 . . . 210 . . . 154 Piercing . | . . . . . . . . . . . . . . . . . . . . Highest Corruption 6 | . . . . . . . . . . . . . . . 5 4 6 2 5 Average Corruption 2 | . . . . . . . . . . . . . . . 1 4 3 2 2 Corruption Purged . | . . . . . . . . . . . . . . . . . . . . Effects 14 | . . . . . . . . . . . . . . . 1 4 4 1 4 Message Errors 5 | . . . . . . . . . . . . . . . . 1 2 . 2 Matter Fused 2 | . . . . . . . . . . . . . . . . 1 1 . . Heat Flow Errors 2 | . . . . . . . . . . . . . . . . 1 . . 1 Parts Rejected 1 | . . . . . . . . . . . . . . . . . 1 . . Data Loss (minor) 3 | . . . . . . . . . . . . . . . 1 1 . 1 . Targeting Errors 1 | . . . . . . . . . . . . . . . . . . . 1 Overload Shots . | . . . . . . . . . . . . . . . . . . . . Overflow Damage 852 | . . . . . 5 246 . 95 100 . 272 . . . . . 129 . 5 Projectiles 702 | . . . . . . 246 . 95 89 . 272 . . . . . . . . Explosions 16 | . . . . . 5 . . . 11 . . . . . . . . . . Melee 134 | . . . . . . . . . . . . . . . . . 129 . 5 Knockbacks 20 | . . . . . . 4 1 3 2 . 7 . . . . . 3 . . Impact 2 | . . . . . . . 1 . . . . . . . . . 1 . . Kinetic 16 | . . . . . . 3 . 3 2 . 6 . . . . . 2 . . Secondary 2 | . . . . . . 1 . . . . 1 . . . . . . . . Self-Inflicted Damage 58 | . . . . . 48 . . . . . . . . . 10 . . . . Shots 3 | . . . . . 2 . . . . . . . . . 1 . . . . Rammed 9 | . . . . . 1 2 1 . . . . . . . 3 . . 2 . Targets Rammed 10 | . . . . . 1 3 1 . . . . . . . 3 . . 2 . Kicked . | . . . . . . . . . . . . . . . . . . . . Crushed 1 | . . . . . . 1 . . . . . . . . . . . . . Highest Temperature 389 | . 234 144 . 282 389 . . . 25 . . . . . 14 232 126 23 . Average Temperature 101 | . 110 67 . 153 118 . . . 25 . . . . . 8 122 43 15 . Received Heat Transfer 1946 | . 114 168 . 84 512 . . 108 42 . 273 . . 27 315 18 69 18 198 Effects 1 | . 1 . . . . . . . . . . . . . . . . . . Interference 1 | . 1 . . . . . . . . . . . . . . . . . . Siege Activations . | . . . . . . . . . . . . . . . . . . . . Robots Corrupted . | . . . . . . . . . . . . . . . . . . . . Combat Hostiles . | . . . . . . . . . . . . . . . . . . . . Parts Fried 2 | . . . . . . . . . . . . . . . . . 2 . . Impact Corruptions 8 | . . . . . . . . . . . . . . . . . 8 . . Robots Melted 1 | . . . . . 1 . . . . . . . . . . . . . . Combat Hostiles 1 | . . . . . 1 . . . . . . . . . . . . . . Parts Melted 8 | . 1 1 . . 5 . . . . . . . . . . . 1 . . Heat Transferred 2964 | . 273 434 . 222 1961 . . 37 37 . . . . . . . . . . Parts Sabotaged 3 | . . . . . . . . . . . 2 . . . . . . . 1 Parts Stolen . | . . . . . . . . . . . . . . . . . . . . Parts Stripped . | . . . . . . . . . . . . . . . . . . . . Power Chain Reactions . | . . . . . . . . . . . . . . . . . . . . Missiles Intercepted . | . . . . . . . . . . . . . . . . . . . . Alert | -11 -10 -10 -10 -9 -8 -7 -6 -6 -6 -6 -5 -5 -5 -5 -5 -4 -4 -3 -3 ------- Run | Scr Mat Min Exi Min Mat Fac Fac Low Low Dat Pro Fac Upp Upp War Pro Fac Res Tes Peak Influence 1654 | . 143 120 . 70 338 578 410 . . . . 96 . . . . 145 68 1654 Average Influence 175 | . 47 48 . 7 183 184 345 . . . . 58 . . . . 45 41 1623 Maximum Alert Level 5 | . . . . . 1 2 2 . . . . . . . . . . . 5 Low Security (%) 76 | . . . . . . . . . . . . . . . . . . . . Level 1 11 | . . . . . . . . . . . . . . . . . . . . Level 2 7 | . . . . . . . . . . . . . . . . . . . . Level 3 . | . . . . . . . . . . . . . . . . . . . . Level 4 . | . . . . . . . . . . . . . . . . . . . . Level 5 . | . . . . . . . . . . . . . . . . . . . . High Security . | . . . . . . . . . . . . . . . . . . . . Max Security 4 | . . . . . . . . . . . . . . . . . . . . Squads Dispatched 22 | . 1 . . . . 3 1 . . . 1 . . . . . 3 1 12 Investigation 3 | . 1 . . . . 1 1 . . . . . . . . . . . . Extermination 3 | . . . . . . . . . . . . . . . . . 2 1 . Reinforcement 2 | . . . . . . 2 . . . . . . . . . . . . . Assault 14 | . . . . . . . . . . . 1 . . . . . 1 . 12 Garrison . | . . . . . . . . . . . . . . . . . . . . Intercept . | . . . . . . . . . . . . . . . . . . . . Construction Impeded . | . . . . . . . . . . . . . . . . . . . . Haulers Reinforced . | . . . . . . . . . . . . . . . . . . . . Stealth | -11 -10 -10 -10 -9 -8 -7 -6 -6 -6 -6 -5 -5 -5 -5 -5 -4 -4 -3 -3 --------- Run | Scr Mat Min Exi Min Mat Fac Fac Low Low Dat Pro Fac Upp Upp War Pro Fac Res Tes Distress Signals 10 | . 1 . . . 3 . . . . . . 2 . . . . 2 . 2 Communications Jammed . | . . . . . . . . . . . . . . . . . . . . Distress Signals . | . . . . . . . . . . . . . . . . . . . . Times Spotted 323 | . 13 10 . 3 37 9 . 10 6 . 57 11 . 4 24 3 33 8 95 Peak Tracking Total 52 | . 9 3 . 3 8 3 . 9 3 . 12 8 . 4 19 3 17 7 52 Tactical Retreats 39 | . . 2 . . 4 . . . 1 . 14 5 . 1 1 2 2 3 4 Traps | -11 -10 -10 -10 -9 -8 -7 -6 -6 -6 -6 -5 -5 -5 -5 -5 -4 -4 -3 -3 ------- Run | Scr Mat Min Exi Min Mat Fac Fac Low Low Dat Pro Fac Upp Upp War Pro Fac Res Tes Traps Triggered 5 | . 1 . . . . . . . . . . . . . 1 . 2 . 1 Indirectly 1 | . . . . . . . . . . . . . . . 1 . . . . Trap Hack Attempts . | . . . . . . . . . . . . . . . . . . . . Triggered . | . . . . . . . . . . . . . . . . . . . . Disarmed . | . . . . . . . . . . . . . . . . . . . . Reprogrammed . | . . . . . . . . . . . . . . . . . . . . Reused . | . . . . . . . . . . . . . . . . . . . . Traps Extracted . | . . . . . . . . . . . . . . . . . . . . Installed . | . . . . . . . . . . . . . . . . . . . . Triggered 4 | . . . . . . . . . . . . . . 2 2 . . . . Machines | -11 -10 -10 -10 -9 -8 -7 -6 -6 -6 -6 -5 -5 -5 -5 -5 -4 -4 -3 -3 ---------- Run | Scr Mat Min Exi Min Mat Fac Fac Low Low Dat Pro Fac Upp Upp War Pro Fac Res Tes Machines Disabled 5 | . . . . . 1 . . 1 . . . . . . 2 . 1 . . Max in Single Turn 2 | . . . . . 1 . . 1 . . . . . . 2 . 1 . . Garrison Access 2 | . . . . . . . 1 . . . . . . . . . 1 . . Machines Sabotaged . | . . . . . . . . . . . . . . . . . . . . Garrisons Compromised . | . . . . . . . . . . . . . . . . . . . . Overloaded Fab Kills . | . . . . . . . . . . . . . . . . . . . . Fab Network Shutdowns 1 | . . . . . . 1 . . . . . . . . . . . . . Hacking | -11 -10 -10 -10 -9 -8 -7 -6 -6 -6 -6 -5 -5 -5 -5 -5 -4 -4 -3 -3 --------- Run | Scr Mat Min Exi Min Mat Fac Fac Low Low Dat Pro Fac Upp Upp War Pro Fac Res Tes Machines Accessed 31 | . 3 . 5 . 2 3 2 2 1 4 . 3 2 1 . . 3 . . Terminals 13 | . 2 . . . 1 2 1 . 1 . . 3 1 1 . . 1 . . Fabricators 2 | . . . . . . 1 . . . . . . . . . . 1 . . Repair Stations . | . . . . . . . . . . . . . . . . . . . . Recycling Units 2 | . 1 . . . 1 . . . . . . . . . . . . . . Scanalyzers . | . . . . . . . . . . . . . . . . . . . . Garrison Access 2 | . . . . . . . 1 . . . . . . . . . 1 . . Total Hacks 149 | . 8 . 47 . 7 9 4 5 1 26 . 20 9 3 . . 10 . . Successful 109 | . 7 . 47 . 4 2 2 5 1 26 . 6 4 . . . 5 . . Failed 40 | . 1 . . . 3 7 2 . . . . 14 5 3 . . 5 . . Catastrophic 10 | . . . . . . 2 . . . . . 5 1 1 . . 1 . . Database Lockouts . | . . . . . . . . . . . . . . . . . . . . Manual 51 | . 7 . 1 . 2 4 2 . . . . 16 8 3 1 . 7 . . Terminals 58 | . 6 . . . 6 7 3 . 1 . . 20 8 3 . . 4 . . Fabricators 4 | . . . . . . 2 . . . . . . . . . . 2 . . Repair Stations . | . . . . . . . . . . . . . . . . . . . . Recycling Units 3 | . 2 . . . 1 . . . . . . . . . . . . . . Scanalyzers . | . . . . . . . . . . . . . . . . . . . . Garrison Access 5 | . . . . . . . 1 . . . . . . . . . 4 . . Terminal Hacks 95 | . 2 . 47 . 2 1 1 5 1 26 . 6 3 . . . 1 . . Record 63 | . . . 46 . . . . 4 1 11 . 1 . . . . . . . Part Schematic 8 | . . . . . . . . . . 5 . 1 2 . . . . . . Robot Schematic 7 | . . . . . . . . . . 7 . . . . . . . . . Robot Analysis 1 | . . . . . . . 1 . . . . . . . . . . . . Prototype ID Bank 3 | . . . . . . . . . . 3 . . . . . . . . . Open Door 2 | . . . . . . . . 1 . . . . 1 . . . . . . Level Access Points 1 | . . . . . . . . . . . . . . . . . 1 . . Branch Access Points 2 | . 1 . . . . . . . . . . 1 . . . . . . . Emergency Access Points 2 | . 1 . . . 1 . . . . . . . . . . . . . . Terminal Index 1 | . . . . . . . . . . . . 1 . . . . . . . Fabricator Index 1 | . . . . . . . . . . . . 1 . . . . . . . Recall Investigation 1 | . . . . . . 1 . . . . . . . . . . . . . Registered Prototypes 1 | . . . . . . . . . . . . 1 . . . . . . . Zone Layout 1 | . . . . . 1 . . . . . . . . . . . . . . EX-Prototype ID Bank 1 | . . . 1 . . . . . . . . . . . . . . . . Fabricator Hacks 3 | . . . . . . 1 . . . . . . . . . . 2 . . Load Schematic 1 | . . . . . . . . . . . . . . . . . 1 . . Build 2 | . . . . . . 1 . . . . . . . . . . 1 . . Repair Station Hacks . | . . . . . . . . . . . . . . . . . . . . Recycling Unit Hacks . | . . . . . . . . . . . . . . . . . . . . Scanalyzer . | . . . . . . . . . . . . . . . . . . . . Garrison Access Hacks 1 | . . . . . . . . . . . . . . . . . 1 . . Unlock Access 1 | . . . . . . . . . . . . . . . . . 1 . . Unauthorized Hacks 25 | . 11 . . . 4 . 3 . . . . . 3 . . . 4 . . Terminals 5 | . 3 . . . 1 . . . . . . . 1 . . . . . . Track 2 | . 2 . . . . . . . . . . . . . . . . . . Botnet 2 | . 1 . . . 1 . . . . . . . . . . . . . . Detonate 1 | . . . . . . . . . . . . . 1 . . . . . . Fabricators . | . . . . . . . . . . . . . . . . . . . . Repair Stations . | . . . . . . . . . . . . . . . . . . . . Recycling Units 3 | . 2 . . . 1 . . . . . . . . . . . . . . Recyclers 1 | . 1 . . . . . . . . . . . . . . . . . . Mask 1 | . . . . . 1 . . . . . . . . . . . . . . Tunnel 1 | . 1 . . . . . . . . . . . . . . . . . . Scanalyzers . | . . . . . . . . . . . . . . . . . . . . Garrison Access 2 | . . . . . . . 1 . . . . . . . . . 1 . . Reprogram 1 | . . . . . . . . . . . . . . . . . 1 . . Jam 1 | . . . . . . . 1 . . . . . . . . . . . . Data Cores Recovered 1 | . . . . . 1 . . . . . . . . . . . . . . Used . | . . . . . . . . . . . . . . . . . . . . Hacking Detections 13 | . 1 . . . 1 2 1 . . . . 3 1 1 . . 3 . . Full Trace Events 2 | . . . . . . 1 . . . . . . 1 . . . . . . Feedback Events . | . . . . . . . . . . . . . . . . . . . . Feedback Blocked . | . . . . . . . . . . . . . . . . . . . . Robot Schematics Acquired 7 | . . . . . . . . . . 7 . . . . . . . . . Robots Built 1 | . . . . . . 1 . . . . . . . . . . . . . Matter 219 | . . . . . . 219 . . . . . . . . . . . . . Time 58 | . . . . . . 58 . . . . . . . . . . . . . Total Robot Build Rating 3 | . . . . . . 3 . . . . . . . . . . . . . Part Schematics Acquired 8 | . . . . . . . . . . 5 . 1 2 . . . . . . Parts Built 1 | . . . . . . . . . . . . . . . . . 1 . . Matter 285 | . . . . . . . . . . . . . . . . . 285 . . Time 76 | . . . . . . . . . . . . . . . . . 76 . . Total Part Build Rating 5 | . . . . . . . . . . . . . . . . . 5 . . Parts Repaired . | . . . . . . . . . . . . . . . . . . . . Time . | . . . . . . . . . . . . . . . . . . . . Parts Recycled . | . . . . . . . . . . . . . . . . . . . . Recycled Matter . | . . . . . . . . . . . . . . . . . . . . Retrieved Matter . | . . . . . . . . . . . . . . . . . . . . Retrieved Components . | . . . . . . . . . . . . . . . . . . . . Parts Scanalyzed . | . . . . . . . . . . . . . . . . . . . . Part Schematics Acquired . | . . . . . . . . . . . . . . . . . . . . Parts Damaged . | . . . . . . . . . . . . . . . . . . . . Bothacking | -11 -10 -10 -10 -9 -8 -7 -6 -6 -6 -6 -5 -5 -5 -5 -5 -4 -4 -3 -3 ------------ Run | Scr Mat Min Exi Min Mat Fac Fac Low Low Dat Pro Fac Upp Upp War Pro Fac Res Tes Used RIF Installer . | . . . . . . . . . . . . . . . . . . . . Robots Hacked . | . . . . . . . . . . . . . . . . . . . . Non-combat . | . . . . . . . . . . . . . . . . . . . . Combat . | . . . . . . . . . . . . . . . . . . . . Robot Hacks Applied . | . . . . . . . . . . . . . . . . . . . . Relay Couplers Released 6 | . . . . . . . . . . . . . . . . . 6 . . Machine Destruction 3 | . . . . . . . . . . . . . . . . . 3 . . Programmers 3 | . . . . . . . . . . . . . . . . . 3 . . Robots Rewired 4 | . . . . . . . . 4 . . . . . . . . . . . Allies Hacked . | . . . . . . . . . . . . . . . . . . . . Hacks Repelled 1 | . . . . . . . . . . . . . . . . . 1 . . Allies | -11 -10 -10 -10 -9 -8 -7 -6 -6 -6 -6 -5 -5 -5 -5 -5 -4 -4 -3 -3 -------- Run | Scr Mat Min Exi Min Mat Fac Fac Low Low Dat Pro Fac Upp Upp War Pro Fac Res Tes Total Allies 7 | . . . . 1 . 1 . 4 . . 1 . . . . . . . . Largest Group 3 | . . . . 1 . 1 . 3 2 . 1 . . . . . . . . Highest-Rated Group 94 | . . . . 31 . 26 . 93 58 . 94 . . . . . . . . Highest-Rated Ally 94 | . . . . 31 . 26 . 32 32 . 94 . . . . . . . . Total Orders 2 | . . . . . . . . . . . . . . 2 . . . . . GOTO 1 | . . . . . . . . . . . . . . 1 . . . . . EXPLORE 1 | . . . . . . . . . . . . . . 1 . . . . . Ally Attacks 21 | . . . . . . . . 14 2 . 5 . . . . . . . . Total Damage 609 | . . . . . . . . 231 121 . 257 . . . . . . . . Kills 1 | . . . . . . . . 1 . . . . . . . . . . . Allies Corrupted . | . . . . . . . . . . . . . . . . . . . . Allies Melted . | . . . . . . . . . . . . . . . . . . . . Intel | -11 -10 -10 -10 -9 -8 -7 -6 -6 -6 -6 -5 -5 -5 -5 -5 -4 -4 -3 -3 ------- Run | Scr Mat Min Exi Min Mat Fac Fac Low Low Dat Pro Fac Upp Upp War Pro Fac Res Tes Robot Analysis Total 1 | . . . . . . . 1 . . . . . . . . . . . . Derelict Logs Recovered 7 | . . 2 . 2 . . . . 1 . . . 2 . . . . . . Drone Launches 2 | . . . . . . . . . . . . . . 2 . . . . . Drone Recoveries . | . . . . . . . . . . . . . . . . . . . . Decoded 0b10 Intel 3 | . . . . . . . . . . . . . . . . . 3 . . Traps 2 | . . . . . . . . . . . . . . . . . 2 . . Emergency Access 1 | . . . . . . . . . . . . . . . . . 1 . . Exploration | -11 -10 -10 -10 -9 -8 -7 -6 -6 -6 -6 -5 -5 -5 -5 -5 -4 -4 -3 -3 ------------- Run | Scr Mat Min Exi Min Mat Fac Fac Low Low Dat Pro Fac Upp Upp War Pro Fac Res Tes Turns Passed 11171 | 8 460 517 1119 479 1210 820 309 1220 660 141 930 773 197 342 365 292 757 318 254 Spaces Moved 8625 | 7 417 343 915 296 508 460 165 618 355 79 622 795 280 319 550 413 670 314 499 Core 717 | . . 2 . . . . . . . . 344 371 . . . . . . . Treads 2041 | . . . . . 86 460 165 618 355 79 278 . . . . . . . . Legs 2015 | 7 35 340 915 296 422 . . . . . . . . . . . . . . Wheels 383 | . 382 1 . . . . . . . . . . . . . . . . . Hover 2997 | . . . . . . . . . . . . 424 280 319 550 413 670 314 27 Flight 472 | . . . . . . . . . . . . . . . . . . . 472 Fastest Speed 40 | 120 90 90 120 150 120 160 180 180 180 180 50 50 70 70 48 70 55 70 40 Average Speed 106 | 120 92 119 121 150 155 172 180 180 180 180 108 60 70 70 56 70 66 70 41 Slowest Speed 240 | 120 120 120 150 150 180 180 180 180 180 180 240 70 70 70 100 70 130 71 70 Overloaded Moves . | . . . . . . . . . . . . . . . . . . . . Propulsion Burnouts . | . . . . . . . . . . . . . . . . . . . . Robots Hopped . | . . . . . . . . . . . . . . . . . . . . Cave-ins Triggered . | . . . . . . . . . . . . . . . . . . . . Exploration Rate (%) 44 | 2 53 67 94 62 38 15 6 67 49 69 72 18 33 55 53 71 15 6 49 Regions Visited 19 Branch Regions 12 Pre-discovered Areas 5 | . 1 . 1 . . . . 2 . 1 . . . . . . . . . Known Exits Taken 5 | . 1 . . . 1 . . . . . . 1 . 1 . . 1 . . Unknown Exits Taken 14 | 1 . 1 1 1 . 1 1 1 1 1 1 . 1 . 1 1 . 1 . Scrap Searched 18 | . . 1 . 2 . . . 3 2 . 3 . 2 3 . 2 . . . Spaces Dug 30 | . . . . . . 1 . 3 . . 2 20 . . . . 2 . 2 Terrain Destroyed 161 | . . . . . 77 6 . 17 12 . 14 20 . . . . 13 . 2 Melee 30 | . . . . . . 1 . 3 . . 2 20 . . . . 2 . 2 Projectile 38 | . . . . . . 5 . 4 6 . 12 . . . . . 11 . . AOE 93 | . . . . . 77 . . 10 6 . . . . . . . . . . Actions | -11 -10 -10 -10 -9 -8 -7 -6 -6 -6 -6 -5 -5 -5 -5 -5 -4 -4 -3 -3 --------- Run | Scr Mat Min Exi Min Mat Fac Fac Low Low Dat Pro Fac Upp Upp War Pro Fac Res Tes Total 10293 | 6 475 418 928 315 799 485 179 713 375 78 868 1063 281 437 594 414 916 412 537 Wait 1075 | . 33 25 . 2 176 7 . . 13 . 214 235 . 118 11 . 148 79 14 Move 8607 | 6 416 342 914 295 507 459 164 617 354 78 621 794 279 318 550 412 669 313 499 Hop . | . . . . . . . . . . . . . . . . . . . . Pick Up 97 | . 7 13 4 5 16 5 7 4 2 . 3 6 1 . 3 . 8 7 6 Fast Attach 33 | . . . . . 1 . . 2 . . 2 2 . . 12 2 7 2 3 Attach 60 | . 4 6 . 1 14 5 1 3 . . 5 5 . . 2 . 10 3 1 Detach 7 | . . . . . . 3 . . . . . . . . 1 . 2 1 . Swap 44 | . 4 5 4 . 15 2 1 7 2 . 1 . . . . . 3 . . Drop 53 | . 2 5 6 . 2 . 5 4 2 . 10 . 1 . 6 . 3 4 3 Fire 139 | . 9 22 . 12 67 . . 4 2 . . . . . 2 . 20 1 . Melee 69 | . . . . . . 1 . 5 . . 12 21 . . 5 . 20 . 5 Ram 4 | . . . . . . . . . . . . . . . 2 . . 2 . Kick . | . . . . . . . . . . . . . . . . . . . . Crush 5 | . . . . . 1 3 1 . . . . . . . . . . . . Escape Stasis 32 | . . . . . . . . . . . . . . . . . 26 . 6 Rewire 67 | . . . . . . . . 67 . . . . . . . . . . . Trap . | . . . . . . . . . . . . . . . . . . . . Miscellaneous 1 | . . . . . . . . . . . . . . 1 . . . . . Route ------- -11/Scrapyard -10/Materials (discovered 2 exits: [*Mat] / *Min) -10/Mines (discovered 2 exits: [*Mat] / *Exi) -10/Exiles (discovered 2 exits: [*Min x2]) -9/Mines (discovered 2 exits: *Mat x2) -8/Materials (discovered 3 exits: *Fac x3) -7/Factory -6/Factory -6/Lower Caves -6/Lower Caves -6/Data Miner -5/Proximity Caves -5/Factory (discovered 3 exits: Fac / *Upp x2) -5/Upper Caves -5/Upper Caves (discovered 2 exits: *Fac / *War) -5/Warlord -4/Proximity Caves -4/Factory (discovered 4 exits: *Res x4) -3/Research -3/Testing History --------- Turn | Location | Event 1 | -11/Scrapyard | Discovered new exit (range 1) 9 | -11/Scrapyard | Entered Materials 62 | -10/Materials | Identified exit to Mines 187 | -10/Materials | Discovered new exit (range 12) 344 | -10/Materials | Build established: Mutant 469 | -10/Materials | Entered Mines 494 | -10/Mines | Core integrity fell below 50% 520 | -10/Mines | Lost 6 parts (1p2n3w) 612 | -10/Mines | Joined a pair of Derelicts in attacking an 0b10 outpost 821 | -10/Mines | Learned Materials interactive machine intel 848 | -10/Mines | Learned location of 1 exit from Materials 913 | -10/Mines | Discovered new exit (range 7) 980 | -10/Mines | Deemed a non-threat by the Exiles lab entrance 980 | -10/Mines | Discovered new exit (range 5) 986 | -10/Mines | Entered Exiles 1010 | -10/Exiles | Discovered new exit (range 14) 1044 | -10/Exiles | Met 8R-AWN 1064 | -10/Exiles | Met EX-HEX 1161 | -10/Exiles | Visited The Gauntlet 1305 | -10/Exiles | Met EX-DEC 1343 | -10/Exiles | Learned location of Zion (-7) 1398 | -10/Exiles | Discovered new exit (range 11) 1505 | -10/Exiles | Met EX-BIN 1630 | -10/Exiles | Aligned with FarCom system 1631 | -10/Exiles | Given EX-Vault access code 1659 | -10/Exiles | Opened EX-Vault 1694 | -10/Exiles | Warned to stay clear of 0b10 Research branches 1878 | -10/Exiles | Found AWS/Autocannon 2105 | -10/Exiles | Left Exiles lab with AWS/Autocannon 2105 | -10/Exiles | Entered Mines 2108 | -9/Mines | Received a Mining Laser from a helpful Derelict 2306 | -9/Mines | Learned 2 Materials zone layouts 2326 | -9/Mines | Learned Materials security intel 2366 | -9/Mines | Discovered new exit (range 5) 2399 | -9/Mines | Discovered new exit (range 6) 2557 | -9/Mines | Lost 3 parts (1p2w) 2584 | -9/Mines | Entered Materials 2584 | -8/Materials | Evolved 4 slots: Propulsion x1, Utility x2, Weapon x1 2585 | -8/Materials | Identified exit to Factory 2588 | -8/Materials | Loaded intel: 15 interactive machine locations 3355 | -8/Materials | Lost 3 parts (1n2w) 3694 | -8/Materials | Discovered exit to Factory (range 16) 3794 | -8/Materials | Entered Factory 3794 | -7/Factory | Evolved 2 slots: Utility x2 3895 | -7/Factory | Build established: Scavenger-Mutant 4387 | -7/Factory | Build established: Scavenger-Skirmisher 4393 | -7/Factory | Fabricated O-24 Administrator (x1) 4400 | -7/Factory | Local fabrication network quarantined 4566 | -7/Factory | Discovered new exit (range 18) 4614 | -7/Factory | Entered another Factory area 4614 | -6/Factory | Evolved 2 slots: Propulsion x1, Weapon x1 4881 | -6/Factory | Discovered new exit (range 18) 4923 | -6/Factory | Entered Lower Caves 4924 | -6/Lower Caves | Encountered a Warlord checkpoint 5206 | -6/Lower Caves | Found Alien Artifact 5207 | -6/Lower Caves | Identified Core Expander 5207 | -6/Lower Caves | Installed Core Expander, added new Weapon slot 5254 | -6/Lower Caves | Attacked by a delusional Derelict stockpiling Unaware 5580 | -6/Lower Caves | Learned location of Extension (-6) 5580 | -6/Lower Caves | Learned Factory security intel 5992 | -6/Lower Caves | Attracted the attention of an 0b10 outpost 6041 | -6/Lower Caves | Destroyed 8 combat bots 6125 | -6/Lower Caves | Discovered new exit (range 10) 6143 | -6/Lower Caves | Entered another Lower Caves area 6143 | -6/Lower Caves | Accompanied by 2 allies 6165 | -6/Lower Caves | Learned Factory trap positions 6297 | -6/Lower Caves | Build established: Scavenger-Tank 6732 | -6/Lower Caves | Attracted the attention of an 0b10 checkpoint 6757 | -6/Lower Caves | Discovered new exit (range 10) 6803 | -6/Lower Caves | Entered Data Miner 6803 | -6/Data Miner | Discovered new exit (range 6) 6838 | -6/Data Miner | Met Data Miner 6888 | -6/Data Miner | Learned location of Section 7 (-2) 6888 | -6/Data Miner | Acquired the access code to Warlord's prototype stash 6904 | -6/Data Miner | Received God Mode back door access code from Data Miner 6931 | -6/Data Miner | Build established: Scavenger-Skirmisher 6944 | -6/Data Miner | Entered Proximity Caves 7139 | -5/Proximity Caves | Spotted B-75 Beast 7451 | -5/Proximity Caves | Attracted the attention of an 0b10 checkpoint 7514 | -5/Proximity Caves | Lost 8 parts (1p4n1u2w) 7775 | -5/Proximity Caves | Build established: Mutant 7847 | -5/Proximity Caves | Attracted the attention of an 0b10 outpost 7847 | -5/Proximity Caves | Core integrity fell below 50% 7867 | -5/Proximity Caves | Discovered new exit (range 14) 7874 | -5/Proximity Caves | Entered Factory 7874 | -5/Factory | Evolved 2 slots: Propulsion x1, Utility x1 7875 | -5/Factory | Loaded intel: 108 trap records 8241 | -5/Factory | Build established: Hacker-Mutant 8331 | -5/Factory | Identified exit to Upper Caves 8336 | -5/Factory | Spotted B-75 Beast 8404 | -5/Factory | Discovered new exit (range 19) 8589 | -5/Factory | Build established: Hacker-Scout 8647 | -5/Factory | Entered Upper Caves 8660 | -5/Upper Caves | Encountered a Warlord checkpoint 8784 | -5/Upper Caves | Learned Factory security intel 8839 | -5/Upper Caves | Discovered new exit (range 10) 8844 | -5/Upper Caves | Entered another Upper Caves area 8844 | -5/Upper Caves | Discovered new exit (range 9) 8845 | -5/Upper Caves | Identified exit to Warlord 8931 | -5/Upper Caves | Spotted B-75 Beast 8951 | -5/Upper Caves | Build established: Hacker-Mutant 9186 | -5/Upper Caves | Entered Warlord 9203 | -5/Warlord | Discovered new exit (range 15) 9233 | -5/Warlord | System corruption cleaned by Quarantine Array 9311 | -5/Warlord | Met Warlord 9320 | -5/Warlord | Opened Warlord's prototype stash 9333 | -5/Warlord | Found Prototype Device 9333 | -5/Warlord | Identified Thermal Barrier 9336 | -5/Warlord | Warlord's base attacked by MAIN.C 9341 | -5/Warlord | Found Prototype Processor 9341 | -5/Warlord | Identified Exp. Target Analyzer 9352 | -5/Warlord | Found Prototype Hackware 9352 | -5/Warlord | Identified System Mapper 9436 | -5/Warlord | Spotted B-75 Beast 9436 | -5/Warlord | Spotted B-86 Titan 9551 | -5/Warlord | Core integrity fell below 50% 9551 | -5/Warlord | Entered Proximity Caves 9581 | -4/Proximity Caves | Lost 12 parts (2n4u6w) 9746 | -4/Proximity Caves | Attracted the attention of an 0b10 checkpoint 9835 | -4/Proximity Caves | Discovered new exit (range 8) 9843 | -4/Proximity Caves | Entered Factory 9843 | -4/Factory | Evolved 2 slots: Power x1, Utility x1 10057 | -4/Factory | Identified exit to Research 10320 | -4/Factory | Lost 3 parts (2n1u) 10506 | -4/Factory | Identified exit to Garrison 10536 | -4/Factory | Incoming assault squad redirected 10558 | -4/Factory | Core integrity fell below 50% 10567 | -4/Factory | Fabricated Biomechanical Wings? 10595 | -4/Factory | Core integrity fell below 20% 10600 | -4/Factory | Entered Research 10600 | -3/Research | Evolved 2 slots: Utility x2 10625 | -3/Research | Lost 13 parts (2p4n6u1w) 10684 | -3/Research | Found Prototype Slashing Weapon 10685 | -3/Research | Identified Centrium Greatsword 10804 | -3/Research | Discovered new exit (range 3) 10918 | -3/Research | Entered Testing 10919 | -3/Testing | Maximum security lockdown engaged 11007 | -3/Testing | Found Prototype Processor 11007 | -3/Testing | Identified Exp. Targeting Computer 11064 | -3/Testing | Found Gamma Bomb Array 11142 | -3/Testing | Core integrity fell below 50% 11164 | -3/Testing | Lost 3 parts (1p1n1w) 11165 | -3/Testing | Spotted Investigator 11165 | -3/Testing | Scanned by Researcher 11170 | -3/Testing | Core integrity fell below 20% 11172 | -3/Testing | Destroyed by G-67 Veteran with Plasma Rifle Last Messages --------------- 11171_ L-61 Swordsman stasis bubble strength at 74. 11171_ G-67 Veteran stasis bubble strength at 86. 11171_ L-61 Swordsman stasis bubble strength at 74. 11171_ Stasis bubble strength at 154. 11171_ L-61 Swordsman stasis bubble strength at 95. 11171_ G-67 Veteran stasis bubble strength at 124. 11171_ M-36 Artificer stasis bubble strength at 140. 11171_ B-74 Champion stasis bubble strength at 20. 11171_ P-80 Master stasis bubble strength at 156. 11171_ M-36 Artificer stasis bubble strength at 130. 11171_ G-67 Veteran stasis bubble strength at 105. 11172_ System corrupted: Heat flow error (+296). 11172_ L-61 Swordsman stasis bubble strength at 53. 11172_ G-67 Veteran stasis bubble strength at 67. [Achievement: First Step to Greatness] [Achievement: Back For More] [Achievement: This Is Interesting...] [Achievement: I Think I Know What's Going On] [Achievement: Just Browsing] [Achievement: Tester] Map ----- +----------------------------------------------------+ | | | | | | | | | | | | | | | | | | | | | | | | | | | | | | | | | | | | | ??????????????????????????????###########????????? | | ??????????####????????????????# !! #????????? | | ??????????#""#????????????????# ! !! #????????? | | ?????######T"################## !! #????????? | | ?????? p pg #????????? | | ########## g gg #####/#####????????? | | gg = blg#### #???????????? | | / l g e@ gg ggg #???????????? | | g g ]gl g ll! lggp### #???????????? | | ######## ggg i gmim#?## ##???????????? | | #??????# g""" gg %#??# ####?????????? | | #??????# "" """bcggl#??#p #?????????? | | #??????####### """ """ g %#??# #?????????? | | #????????????# "T """gg##+####/## #?????????? | | #????????????# """ """ #? ## #?????????? | | #????????????# "" p"%g# """ [## #?????????? | | #????????????# i/ """ ## #?????????? | | #?????????# # """ ## #?????????? | | +?????????# ######## #? ## #?????????? | | #?????????# #????###+#######+## #?????????? | | #?????????#### #????# # #?????????? | | ###????????????# ????# # #?????????? | | ???????????????# ??Y??# # #?????????? | | ???????????????# ?Y?Y?# """ """ # #?????????? | | ?????????????????????Y??+ """ """ # #?????????? | | ????????????????????????# """ """ # #?????????? | | ????????????????????????# + #?????????? | | ????????????????????????# # #?????????? | | ????????????????????????########### #?????????? | | ?????????????????????????????????? #?????????? | | ??????????????????????????????????####+#?????????? | | ?????????????????????????????????????????????????? | +----------------------------------------------------+ Best States ------------- Heat Dissipation 64 Energy Generation 41 Energy Capacity 300 Matter Stores 300 Matter Capacity 300 Sight Range 16 Terrain Scan Range 24 Terrain Scan Density 210 Additional Mass Support 9 Armor Coverage 600 Point Defense Rating 80 Evasion (%) 62 Targeting Accuracy 12 Melee Accuracy 16 Target Analysis 12 Recoil Reduction 4 Offensive Hacking 40 Defensive Hacking 24 Item Schematics ----------------- Combat Drone Bay | -6/Data Miner | Free Lgt. Regenerative Plating | -6/Data Miner | Free Triangulator | -6/Data Miner | Free Exp. Sensor Array | -6/Data Miner | Free Exp. ECM Suite | -6/Data Miner | Free Adv. Terrain Scanner | -5/Factory | Hacked Biomechanical Wings | -5/Upper Caves | Hacked Lance | -5/Upper Caves | Hacked Robot Schematics ------------------ S-27 Virus | -6/Data Miner | Free G-67 Veteran | -6/Data Miner | Free G-50 Soldier | -6/Data Miner | Free P-70 Sage | -6/Data Miner | Free X-72 Disruptor | -6/Data Miner | Free L-41 Fighter | -6/Data Miner | Free I-36 Angel | -6/Data Miner | Free Fabricated ------------ O-24 Administrator | x1 | -7/Factory | Preloaded Biomechanical Wings | x1 | -4/Factory Alien Tech Used ----------------- Core Expander Achievements -------------- A New Friend A Powerful Ally? Adventurer Alien Tech Back For More Brute Force Close Call Crack Shot Dangerous Findings Explorer First Step to Greatness Hunted I Think I Know What's Going On I'm Back, Baby! It's Just You Just Browsing Just What I Needed Leap Before You Look Librarian Loot Pinata Made in Tau Ceti IV My Command Is Your Wish Novice Programmer Oh No You Don't! Omniscient Cartographer One Hack Too Far Part-time Excavator Preemptive Strike Reappropriation Risk Taker Serviceable Loadout Storm Trooper Tester The Oracle This Is Interesting... Tourist True Hacker Uninvited Guest Universal Adapter Challenges ------------ None Game ------ Seed ScanNeutronNanoactuators Manual? 0 Play Time 03:06:31 Cumulative 100.0 hours Start 2019.10.25 @ 00:17:38 End 2019.11.19 @ 07:12:11 Sessions 11 Manual Loads 0 Difficulty Rogue Special Mode None Game No. 69 Rogue 69 Adventurer 0 Explorer 0 Win Type - Total 2 Types 2/0/0/0/0/0/0 Lore% 53 Gallery% 53 Achievement% 15 Wizard Run 0 Options --------- ASCII 1 Keyboard 0 Movement Mouse Keybinds 0 Fullscreen 2 Font 18/SmallcapsGlow Map View 76x50 Tactical HUD 1 Map Filters NONE Filters NONE Steam 0 RUN: 41f85a37-dc4c-4b5f-ab73-ec59dda54d82